[Event "48th Continental Open"]
[Site "Sturbridge, MA"]
[Date "2018.08.19"]
[Round "7.7"]
[White "Kim, Yoon-Young"]
[Black "Barash, Anton"]
[Result "0-1"]
[ECO "E05"]
[WhiteElo "2360"]
[BlackElo "1972"]
[PlyCount "111"]
[EventDate "2018.08.??"]
[EventType "swiss"]
[EventRounds "9"]
[EventCountry "USA"]
[TimeControl "6000+10"]
[WhiteClock "0:00:21"]
[BlackClock "0:02:33"]

1. d4 {[%emt 0:00:10]} d5 {[%emt 0:00:20]} 2. c4 {[%emt 0:00:13]} e6 {[%emt 0:
00:11]} 3. Nf3 {[%emt 0:00:11]} Nf6 {[%emt 0:00:10]} 4. g3 {[%emt 0:00:10]}
dxc4 {[%emt 0:00:12]} 5. Bg2 {[%emt 0:00:11]} Nc6 {[%emt 0:00:11]} 6. Qa4 {
[%emt 0:00:11]} Bb4+ {[%emt 0:00:11]} 7. Bd2 {[%emt 0:00:10]} Nd5 {[%emt 0:00:
11]} 8. Bxb4 {[%emt 0:00:52]} Ndxb4 {[%emt 0:00:14]} 9. O-O {[%emt 0:00:23]} a6
{[%emt 0:07:50]} 10. Ne5 {[%emt 0:03:19]} O-O {[%emt 0:00:28]} 11. Nxc6 {
[%emt 0:00:59]} Nxc6 {[%emt 0:00:18]} 12. Bxc6 {[%emt 0:00:21]} bxc6 {[%emt 0:
00:13]} 13. Qxc4 {[%emt 0:00:29]} Rb8 {[%emt 0:00:46]} 14. b3 {[%emt 0:09:46]}
Qd6 {[%emt 0:04:06]} 15. Nc3 {[%emt 0:11:37]} Rb4 {[%emt 0:01:57]} 16. Ne4 {
[%emt 0:00:12]} Qxd4 {[%emt 0:01:53]} 17. Qxd4 {[%emt 0:00:12]} Rxd4 {[%emt 0:
00:13]} 18. Nc5 {[%emt 0:04:10]} Rd2 {[%emt 0:07:45]} 19. Rfe1 {[%emt 0:02:46]}
Rfd8 {[%emt 0:02:11]} 20. a4 {[%emt 0:03:42]} Kf8 {[%emt 0:11:20]} 21. Rac1 {
[%emt 0:01:44]} a5 {[%emt 0:25:49]} 22. f4 {[%emt 0:02:14]} Rb2 {[%emt 0:06:21]
} 23. Kf2 {[%emt 0:03:41]} Rdd2 {[%emt 0:02:03]} 24. Ke3 {[%emt 0:02:51]} e5 {
[%emt 0:07:25]} 25. Nd3 {[%emt 0:02:30]} exf4+ {[%emt 0:00:21]} 26. gxf4 {
[%emt 0:00:14]} Rbc2 {[%emt 0:00:21]} 27. Rxc2 {[%emt 0:02:17]} Rxc2 {[%emt 0:
00:13]} 28. Rc1 {[%emt 0:01:28]} Rxc1 {[%emt 0:00:43]} 29. Nxc1 {[%emt 0:00:19]
} Ke7 {[%emt 0:00:35]} 30. Kd4 {[%emt 0:00:30]} Kd6 {[%emt 0:00:44]} 31. Nd3 {
[%emt 0:01:17]} Ba6 {[%emt 0:02:55]} 32. Nc5 {[%emt 0:01:20]} Bxe2 {[%emt 0:01:
03]} 33. Nb7+ {[%emt 0:00:28]} Kd7 {[%emt 0:00:10]} 34. Nxa5 {[%emt 0:00:44]}
f6 {[%emt 0:07:24]} 35. Nb7 {[%emt 0:02:39]} g5 {[%emt 0:07:34]} 36. Nc5+ {
[%emt 0:00:47]} Kc8 {[%emt 0:00:10]} 37. Ke4 {[%emt 0:12:33]} g4 {[%emt 0:01:
10]} 38. Ke3 {[%emt 0:04:59]} Bd1 {[%emt 0:00:45]} 39. Kf2 {[%emt 0:06:17]} f5
{[%emt 0:00:00]} 40. Kg3 {[%emt 0:00:19]} Kb8 {[%emt 0:00:00]} 41. Kh4 {
[%emt 0:00:21]} Ka7 {[%emt 0:00:18]} 42. a5 {[%emt 0:05:14]} h6 {[%emt 0:00:25]
} 43. b4 {[%emt 0:00:25]} Be2 {[%emt 0:00:00]} 44. Ne6 {[%emt 0:01:59]} Bc4 {
[%emt 0:00:00]} 45. Nd4 {[%emt 0:03:42]} Ka6 {[%emt 0:00:25]} 46. Nxf5 {
[%emt 0:03:48]} Kb5 {[%emt 0:00:00]} 47. Nxh6 {[%emt 0:00:00]} Kxb4 {[%emt 0:
00:16]} 48. f5 {[%emt 0:00:00]} Kxa5 {[%emt 0:00:00]} 49. f6 {[%emt 0:00:00]}
c5 {[%emt 0:00:00]} 50. f7 {[%emt 0:02:58]} Bxf7 {[%emt 0:00:00]} 51. Nxf7 {
[%emt 0:00:12]} Kb4 {[%emt 0:00:00]} 52. Kxg4 {[%emt 0:00:22]} c4 {[%emt 0:00:
00]} 53. Kf3 {[%emt 0:00:08]} c3 {[%emt 0:00:00]} 54. Ke2 {[%emt 0:00:00]} Kb3
{[%emt 0:01:11]} 55. Ne5 {[%emt 0:00:10]} c5 {[%emt 0:00:00]} 56. Kd1 {[%emt 0:
00:25]} 0-1

[Event "48th Continental Open"]
[Site "Sturbridge, MA"]
[Date "2018.08.19"]
[Round "7.8"]
[White "Bader, Jeremy"]
[Black "Mishra, Abhimanyu"]
[Result "0-1"]
[ECO "B47"]
[WhiteElo "1845"]
[BlackElo "2166"]
[PlyCount "80"]
[EventDate "2018.08.??"]
[EventType "swiss"]
[EventRounds "9"]
[EventCountry "USA"]
[TimeControl "6000+10"]
[WhiteClock "0:00:06"]
[BlackClock "0:20:13"]

1. e4 {[%emt 0:00:10]} c5 {[%emt 0:00:21]} 2. Nf3 {[%emt 0:00:14]} e6 {[%emt 0:
00:13]} 3. d4 {[%emt 0:00:17]} cxd4 {[%emt 0:00:12]} 4. Nxd4 {[%emt 0:00:17]}
Nc6 {[%emt 0:00:21]} 5. Nc3 {[%emt 0:01:02]} Qc7 {[%emt 0:00:12]} 6. Ndb5 {
[%emt 0:02:36]} Qb8 {[%emt 0:00:11]} 7. Be3 {[%emt 0:00:31]} a6 {[%emt 0:00:19]
} 8. Bb6 {[%emt 0:01:14]} axb5 {[%emt 0:00:10]} 9. Nxb5 {[%emt 0:00:15]} Bb4+ {
[%emt 0:00:12]} 10. c3 {[%emt 0:00:36]} Ba5 {[%emt 0:00:10]} 11. Nc7+ {[%emt 0:
00:41]} Qxc7 {[%emt 0:00:11]} 12. Bxc7 {[%emt 0:00:14]} Bxc7 {[%emt 0:00:10]}
13. Bb5 {[%emt 0:08:56]} Nge7 {[%emt 0:03:14]} 14. O-O {[%emt 0:01:55]} O-O {
[%emt 0:04:44]} 15. Qe2 {[%emt 0:06:33]} f5 {[%emt 0:08:09]} 16. f3 {[%emt 0:
07:16]} f4 {[%emt 0:10:47]} 17. Rfd1 {[%emt 0:04:00]} Ne5 {[%emt 0:06:29]} 18.
Qf2 {[%emt 0:11:36]} d6 {[%emt 0:11:00]} 19. c4 {[%emt 0:07:41]} Bd7 {[%emt 0:
05:46]} 20. Bxd7 {[%emt 0:04:17]} Nxd7 {[%emt 0:00:10]} 21. Kh1 {[%emt 0:02:50]
} Nc6 {[%emt 0:01:48]} 22. b4 {[%emt 0:05:28]} Nxb4 {[%emt 0:08:40]} 23. Qb2 {
[%emt 0:04:32]} Na6 {[%emt 0:00:37]} 24. Qxb7 {[%emt 0:08:06]} Rfb8 {[%emt 0:
00:28]} 25. Qc6 Ne5 {[%emt 0:00:12]} 26. Qa4 {[%emt 0:00:47]} Nb4 {[%emt 0:00:
46]} 27. Qb3 {[%emt 0:00:43]} Nbd3 {[%emt 0:00:31]} 28. Rxd3 {[%emt 0:11:32]}
Rxb3 {[%emt 0:00:16]} 29. Rxb3 {[%emt 0:00:15]} Nxc4 {[%emt 0:01:29]} 30. g3 {
[%emt 0:01:16]} d5 {[%emt 0:04:44]} 31. exd5 {[%emt 0:01:10]} exd5 {[%emt 0:00:
13]} 32. Kg2 {[%emt 0:01:59]} Be5 {[%emt 0:01:30]} 33. Rc1 {[%emt 0:02:16]}
Rxa2+ {[%emt 0:01:16]} 34. Kh3 {[%emt 0:00:18]} Ra6 {[%emt 0:03:53]} 35. Rb7 {
[%emt 0:04:14]} Rg6 {[%emt 0:04:13]} 36. g4 {[%emt 0:00:00]} h5 {[%emt 0:01:11]
} 37. gxh5 {[%emt 0:00:15]} Rg5 {[%emt 0:00:39]} 38. Rd7 {[%emt 0:00:00]} Ne3 {
[%emt 0:00:35]} 39. Kh4 {[%emt 0:00:19]} Bf6 {[%emt 0:00:25]} 40. Rc8+ {
[%emt 0:00:13]} Kh7 {[%emt 0:00:10]} 0-1

[Event "48th Continental Open"]
[Site "Sturbridge, MA"]
[Date "2018.08.19"]
[Round "7.9"]
[White "Shanmugasundaram, Coimbatore"]
[Black "Luo, Terry"]
[Result "1-0"]
[ECO "A10"]
[WhiteElo "2147"]
[BlackElo "1793"]
[PlyCount "85"]
[EventDate "2018.08.??"]
[EventType "swiss"]
[EventRounds "9"]
[EventCountry "USA"]
[TimeControl "6000+10"]
[WhiteClock "0:07:23"]
[BlackClock "0:07:20"]

1. c4 {[%emt 0:00:10]} g6 2. Nc3 {[%emt 0:00:28]} Bg7 {[%emt 0:00:38]} 3. g3 {
[%emt 0:00:10]} Nf6 {[%emt 0:00:15]} 4. Bg2 {[%emt 0:00:14]} O-O {[%emt 0:00:
15]} 5. Nf3 {[%emt 0:00:18]} d6 {[%emt 0:00:44]} 6. O-O {[%emt 0:00:15]} c5 {
[%emt 0:01:29]} 7. a3 {[%emt 0:03:02]} Nc6 {[%emt 0:01:09]} 8. Rb1 {[%emt 0:00:
16]} a5 {[%emt 0:02:08]} 9. d3 {[%emt 0:02:17]} Bg4 {[%emt 0:03:38]} 10. h3 {
[%emt 0:05:24]} Bxf3 {[%emt 0:00:17]} 11. Bxf3 {[%emt 0:00:10]} Nd7 {[%emt 0:
09:04]} 12. Nb5 {[%emt 0:01:58]} Qb6 {[%emt 0:20:54]} 13. Bd2 {[%emt 0:06:29]}
Rfb8 {[%emt 0:03:07]} 14. b4 {[%emt 0:02:06]} axb4 {[%emt 0:00:38]} 15. axb4 {
[%emt 0:00:10]} cxb4 {[%emt 0:00:49]} 16. Bxb4 {[%emt 0:02:19]} Nxb4 {[%emt 0:
03:40]} 17. Rxb4 {[%emt 0:00:24]} Ne5 {[%emt 0:01:51]} 18. Bg2 {[%emt 0:01:34]}
Nc6 {[%emt 0:00:12]} 19. Rb1 {[%emt 0:00:11]} Qa5 {[%emt 0:02:06]} 20. e3 {
[%emt 0:04:49]} h5 {[%emt 0:09:51]} 21. d4 {[%emt 0:03:43]} Qa2 {[%emt 0:02:21]
} 22. Nc7 {[%emt 0:03:27]} Ra7 {[%emt 0:06:15]} 23. Bxc6 {[%emt 0:02:52]} Rc8 {
[%emt 0:00:19]} 24. Nb5 {[%emt 0:00:46]} bxc6 {[%emt 0:00:19]} 25. Nxa7 {
[%emt 0:00:15]} Qxa7 {[%emt 0:00:13]} 26. Qb3 {[%emt 0:03:21]} c5 {[%emt 0:00:
54]} 27. d5 {[%emt 0:00:43]} Qd7 {[%emt 0:01:06]} 28. h4 {[%emt 0:03:33]} Bf6 {
[%emt 0:00:39]} 29. Qd1 {[%emt 0:03:00]} Qf5 {[%emt 0:01:08]} 30. Qe2 {[%emt 0:
03:44]} Ra8 {[%emt 0:00:51]} 31. Rfc1 {[%emt 0:03:33]} Kg7 {[%emt 0:01:25]} 32.
e4 {[%emt 0:07:41]} Qh3 {[%emt 0:01:01]} 33. Rd1 {[%emt 0:10:51]} Ra3 {[%emt 0:
03:05]} 34. Rd3 {[%emt 0:00:19]} Rxd3 {[%emt 0:01:10]} 35. Qxd3 {[%emt 0:02:07]
} Bxh4 {[%emt 0:00:11]} 36. Qf1 {[%emt 0:06:02]} Qg4 {[%emt 0:01:25]} 37. Qd1 {
[%emt 0:00:17]} Qxd1+ {[%emt 0:00:25]} 38. Rxd1 {[%emt 0:00:10]} Bf6 {[%emt 0:
00:18]} 39. Kg2 {[%emt 0:01:49]} Bd4 {[%emt 0:08:17]} 40. Rb1 {[%emt 0:01:56]}
Kf6 {[%emt 0:00:43]} 41. Rb7 {[%emt 0:04:57]} e6 {[%emt 0:04:48]} 42. f4 {
[%emt 0:01:46]} e5 {[%emt 0:00:12]} 43. Rd7 {[%emt 0:00:11]} 1-0

[Event "48th Continental Open"]
[Site "Sturbridge, MA"]
[Date "2018.08.19"]
[Round "7.10"]
[White "Genger, Eitan"]
[Black "Tanenbaum, Zachary"]
[Result "1/2-1/2"]
[ECO "D02"]
[WhiteElo "1903"]
[BlackElo "2133"]
[PlyCount "93"]
[EventDate "2018.08.??"]
[EventType "swiss"]
[EventRounds "9"]
[EventCountry "USA"]
[TimeControl "6000+10"]
[WhiteClock "0:00:31"]
[BlackClock "0:00:03"]

1. Nf3 {[%emt 0:00:10]} d5 {[%emt 0:03:54]} 2. d4 {[%emt 0:00:18]} Bf5 {
[%emt 0:00:21]} 3. c4 {[%emt 0:01:34]} e6 {[%emt 0:00:25]} 4. g3 {[%emt 0:00:
52]} c6 {[%emt 0:00:57]} 5. Bg2 {[%emt 0:00:45]} Nd7 {[%emt 0:01:06]} 6. Nbd2 {
[%emt 0:00:59]} Ngf6 {[%emt 0:01:14]} 7. O-O {[%emt 0:00:40]} Be7 {[%emt 0:10:
19]} 8. b3 {[%emt 0:01:47]} O-O {[%emt 0:01:32]} 9. Bb2 {[%emt 0:03:33]} Ne4 {
[%emt 0:03:37]} 10. Ne1 {[%emt 0:06:26]} Nxd2 {[%emt 0:20:26]} 11. Qxd2 {
[%emt 0:00:10]} Bf6 {[%emt 0:06:11]} 12. f3 {[%emt 0:04:32]} Bg6 {[%emt 0:20:
06]} 13. e4 {[%emt 0:02:00]} dxe4 {[%emt 0:04:04]} 14. fxe4 {[%emt 0:00:27]} e5
{[%emt 0:07:24]} 15. d5 {[%emt 0:04:13]} Bg5 {[%emt 0:05:13]} 16. Qe2 {[%emt 0:
11:09]} cxd5 {[%emt 0:02:39]} 17. cxd5 {[%emt 0:16:47]} Qb6+ {[%emt 0:04:28]}
18. Kh1 {[%emt 0:00:10]} Be3 {[%emt 0:03:07]} 19. Nc2 {[%emt 0:05:59]} Bc5 {
[%emt 0:00:31]} 20. Na3 {[%emt 0:05:01]} Rfe8 {[%emt 0:01:34]} 21. Nc4 {
[%emt 0:00:59]} Qa6 {[%emt 0:00:48]} 22. Qe1 {[%emt 0:02:58]} Bd4 {[%emt 0:03:
25]} 23. Qd2 {[%emt 0:08:00]} Nc5 {[%emt 0:00:00]} 24. Bxd4 {[%emt 0:04:10]}
Nxe4 {[%emt 0:00:41]} 25. Qb2 {[%emt 0:00:34]} exd4 {[%emt 0:00:11]} 26. Qxd4 {
[%emt 0:00:17]} Nd6 {[%emt 0:00:00]} 27. Ne5 {[%emt 0:06:26]} Nf5 {[%emt 0:00:
10]} 28. Qf4 {[%emt 0:00:57]} Qd6 {[%emt 0:00:13]} 29. Nxg6 {[%emt 0:01:34]}
hxg6 {[%emt 0:00:15]} 30. Qxd6 {[%emt 0:01:19]} Nxd6 {[%emt 0:00:10]} 31. Bf3 {
[%emt 0:02:18]} Re7 {[%emt 0:00:12]} 32. Kg2 {[%emt 0:02:11]} Rc8 {[%emt 0:00:
09]} 33. Rac1 {[%emt 0:00:40]} Rec7 {[%emt 0:00:00]} 34. Rxc7 {[%emt 0:00:11]}
Rxc7 {[%emt 0:00:00]} 35. Rf2 {[%emt 0:00:28]} Kf8 {[%emt 0:00:31]} 36. Rd2 {
[%emt 0:00:55]} Ke7 {[%emt 0:00:00]} 37. Re2+ {[%emt 0:01:10]} Kd8 {[%emt 0:00:
12]} 38. Kf2 {[%emt 0:00:43]} Rc3 {[%emt 0:00:00]} 39. Re3 {[%emt 0:01:43]}
Rc2+ {[%emt 0:00:00]} 40. Re2 {[%emt 0:00:10]} Rxe2+ {[%emt 0:00:00]} 41. Kxe2
{[%emt 0:00:10]} Kd7 {[%emt 0:00:00]} 42. Kd3 {[%emt 0:00:50]} Ne8 {[%emt 0:00:
00]} 43. Kd4 {[%emt 0:00:02]} Kd6 {[%emt 0:00:00]} 44. Bg2 {[%emt 0:00:00]} Nf6
{[%emt 0:01:24]} 45. Bf3 {[%emt 0:00:00]} Nd7 {[%emt 0:00:00]} 46. Bg2 {
[%emt 0:00:00]} Ne5 {[%emt 0:00:18]} 47. h4 {[%emt 0:01:02]} 1/2-1/2

[Event "48th Continental Open"]
[Site "Sturbridge, MA"]
[Date "2018.08.19"]
[Round "7.11"]
[White "Tang, Jason"]
[Black "Graif, William"]
[Result "0-1"]
[ECO "B76"]
[WhiteElo "1908"]
[BlackElo "2123"]
[PlyCount "90"]
[EventDate "2018.08.??"]
[EventType "swiss"]
[EventRounds "9"]
[EventCountry "USA"]
[TimeControl "6000+10"]
[WhiteClock "0:06:55"]
[BlackClock "0:01:24"]

1. e4 {[%emt 0:00:10]} c5 2. Nf3 {[%emt 0:00:11]} d6 {[%emt 0:00:33]} 3. d4 {
[%emt 0:00:13]} cxd4 {[%emt 0:00:14]} 4. Nxd4 {[%emt 0:00:11]} Nf6 {[%emt 0:00:
14]} 5. Nc3 {[%emt 0:00:14]} g6 {[%emt 0:00:14]} 6. Be3 {[%emt 0:00:12]} Bg7 {
[%emt 0:00:14]} 7. f3 {[%emt 0:00:13]} O-O {[%emt 0:00:14]} 8. Qd2 {[%emt 0:00:
11]} Nc6 {[%emt 0:00:19]} 9. O-O-O {[%emt 0:00:22]} d5 {[%emt 0:00:15]} 10. Kb1
{[%emt 0:00:14]} Nxd4 {[%emt 0:00:33]} 11. e5 {[%emt 0:00:13]} Nf5 {[%emt 0:00:
17]} 12. exf6 {[%emt 0:00:10]} exf6 {[%emt 0:00:17]} 13. Bc5 {[%emt 0:00:33]}
d4 {[%emt 0:00:22]} 14. Bxf8 {[%emt 0:00:12]} Qxf8 {[%emt 0:00:17]} 15. Nb5 {
[%emt 0:00:11]} Ne3 {[%emt 0:00:21]} 16. Re1 {[%emt 0:00:11]} f5 {[%emt 0:00:
19]} 17. f4 {[%emt 0:00:11]} Qc5 {[%emt 0:01:28]} 18. c3 {[%emt 0:00:15]} Be6 {
[%emt 0:01:11]} 19. Nxd4 {[%emt 0:09:16]} Nxf1 {[%emt 0:00:29]} 20. Rhxf1 {
[%emt 0:01:32]} Bd5 {[%emt 0:00:22]} 21. Nb3 {[%emt 0:17:46]} Qc4 {[%emt 0:16:
19]} 22. Rf2 {[%emt 0:17:52]} a5 {[%emt 0:24:17]} 23. Rfe2 {[%emt 0:30:10]}
Be4+ {[%emt 0:11:44]} 24. Rxe4 {[%emt 0:01:08]} fxe4 {[%emt 0:00:17]} 25. Qe2 {
[%emt 0:01:05]} Qxe2 {[%emt 0:01:08]} 26. Rxe2 {[%emt 0:00:10]} f5 {[%emt 0:00:
44]} 27. a4 {[%emt 0:02:30]} b6 {[%emt 0:02:18]} 28. Kc2 {[%emt 0:00:57]} Kf7 {
[%emt 0:01:34]} 29. Nd2 {[%emt 0:00:17]} Rc8 {[%emt 0:00:11]} 30. Kb3 {[%emt 0:
01:04]} Ke6 {[%emt 0:01:23]} 31. Nc4 {[%emt 0:02:37]} Bf8 {[%emt 0:08:34]} 32.
Ne3 {[%emt 0:01:49]} Bc5 {[%emt 0:04:50]} 33. Kc2 {[%emt 0:01:13]} h6 {[%emt 0:
01:45]} 34. h4 {[%emt 0:03:20]} Bd6 {[%emt 0:02:54]} 35. g3 {[%emt 0:01:26]} g5
{[%emt 0:00:18]} 36. hxg5 {[%emt 0:00:26]} hxg5 {[%emt 0:00:15]} 37. Rh2 {
[%emt 0:00:15]} gxf4 {[%emt 0:01:44]} 38. Rh6+ {[%emt 0:00:11]} Ke5 {[%emt 0:
00:27]} 39. gxf4+ {[%emt 0:00:48]} Kxf4 {[%emt 0:00:16]} 40. Nxf5 {[%emt 0:01:
33]} Bf8 {[%emt 0:03:07]} 41. Nd6 {[%emt 0:01:50]} Bxh6 {[%emt 0:13:25]} 42.
Nxc8 {[%emt 0:00:14]} e3 {[%emt 0:00:34]} 43. Nd6 {[%emt 0:00:00]} e2 {[%emt 0:
00:43]} 44. Kd2 {[%emt 0:00:00]} Kf3+ {[%emt 0:00:00]} 45. Ke1 {[%emt 0:00:00]}
Bg5 {[%emt 0:00:00]} 0-1

[Event "48th Continental Open"]
[Site "Sturbridge, MA"]
[Date "2018.08.19"]
[Round "7.12"]
[White "Wu, Brandon"]
[Black "Falcao, Wesley"]
[Result "1-0"]
[ECO "A30"]
[WhiteElo "1980"]
[BlackElo "2148"]
[PlyCount "97"]
[EventDate "2018.08.??"]
[EventType "swiss"]
[EventRounds "9"]
[EventCountry "USA"]
[TimeControl "6000+10"]
[WhiteClock "0:02:45"]
[BlackClock "0:00:26"]

1. Nf3 {[%emt 0:00:10]} c5 {[%emt 0:00:42]} 2. c4 {[%emt 0:00:21]} Nf6 {
[%emt 0:01:31]} 3. g3 {[%emt 0:02:17]} b6 {[%emt 0:00:48]} 4. Bg2 {[%emt 0:00:
22]} Bb7 {[%emt 0:00:15]} 5. O-O {[%emt 0:00:16]} e6 {[%emt 0:00:39]} 6. Nc3 {
[%emt 0:00:18]} Be7 {[%emt 0:04:10]} 7. Re1 {[%emt 0:02:47]} d6 {[%emt 0:03:47]
} 8. e4 {[%emt 0:00:25]} e5 {[%emt 0:00:40]} 9. Rb1 {[%emt 0:09:32]} Nc6 {
[%emt 0:08:45]} 10. d3 {[%emt 0:04:30]} O-O {[%emt 0:00:50]} 11. a3 {[%emt 0:
03:22]} Bc8 {[%emt 0:02:12]} 12. h3 {[%emt 0:02:13]} Bd7 {[%emt 0:06:57]} 13.
b4 {[%emt 0:07:14]} Rc8 {[%emt 0:09:02]} 14. Bd2 {[%emt 0:10:22]} Be6 {[%emt 0:
08:10]} 15. Nd5 {[%emt 0:03:17]} Qd7 {[%emt 0:04:50]} 16. Kh2 {[%emt 0:02:46]}
Ne8 {[%emt 0:05:03]} 17. Qa4 {[%emt 0:07:16]} Bd8 {[%emt 0:06:16]} 18. g4 {
[%emt 0:06:46]} h6 {[%emt 0:05:13]} 19. bxc5 {[%emt 0:03:09]} dxc5 {[%emt 0:01:
29]} 20. Qc2 {[%emt 0:06:21]} g5 {[%emt 0:03:39]} 21. Bc3 {[%emt 0:06:58]} f6 {
[%emt 0:00:45]} 22. Ne3 {[%emt 0:02:29]} Rf7 {[%emt 0:00:35]} 23. Nf5 {[%emt 0:
03:35]} Rh7 {[%emt 0:00:22]} 24. Nd2 {[%emt 0:07:05]} Bc7 {[%emt 0:04:32]} 25.
Kg1 {[%emt 0:02:03]} h5 {[%emt 0:04:16]} 26. Nf1 {[%emt 0:01:10]} Bd8 {[%emt 0:
04:52]} 27. N1g3 {[%emt 0:01:17]} hxg4 {[%emt 0:02:22]} 28. hxg4 {[%emt 0:00:
19]} Bf7 {[%emt 0:00:17]} 29. f3 {[%emt 0:01:17]} Nc7 {[%emt 0:00:35]} 30. Kf2
{[%emt 0:01:07]} Ne6 {[%emt 0:01:18]} 31. Rh1 {[%emt 0:01:02]} Bg6 {[%emt 0:01:
39]} 32. Rxh7 {[%emt 0:03:01]} Bxh7 {[%emt 0:00:18]} 33. Ne3 {[%emt 0:00:00]}
Nf4 {[%emt 0:05:31]} 34. Nd5 {[%emt 0:00:11]} Bg6 {[%emt 0:00:59]} 35. Rh1 {
[%emt 0:00:29]} Kg7 {[%emt 0:00:59]} 36. Nf5+ {[%emt 0:00:00]} Kf7 {[%emt 0:01:
28]} 37. Bd2 {[%emt 0:00:07]} Ne6 {[%emt 0:00:17]} 38. Qb1 {[%emt 0:00:25]} Kg8
{[%emt 0:00:00]} 39. Rh6 {[%emt 0:00:00]} Nf8 {[%emt 0:00:35]} 40. Qh1 {
[%emt 0:00:00]} Nd4 {[%emt 0:00:11]} 41. Rh8+ {[%emt 0:00:13]} Kf7 {[%emt 0:00:
06]} 42. Qh6 {[%emt 0:00:00]} Nde6 {[%emt 0:00:00]} 43. f4 {[%emt 0:00:00]} Rb8
{[%emt 0:00:00]} 44. fxe5 {[%emt 0:00:00]} fxe5 {[%emt 0:00:00]} 45. Rxf8+ {
[%emt 0:00:00]} Nxf8 {[%emt 0:00:00]} 46. Qg7+ {[%emt 0:00:00]} Ke8 {[%emt 0:
00:00]} 47. Qxe5+ {[%emt 0:00:00]} Ne6 {[%emt 0:00:35]} 48. Nd6+ {[%emt 0:00:
00]} Kf8 {[%emt 0:00:14]} 49. Qh8# {[%emt 0:00:00]} 1-0

[Event "48th Continental Open"]
[Site "Sturbridge, MA"]
[Date "2018.08.19"]
[Round "7.13"]
[White "Chen, Jacob"]
[Black "Poliannikov, Danila"]
[Result "1-0"]
[ECO "C44"]
[WhiteElo "2084"]
[BlackElo "1994"]
[PlyCount "111"]
[EventDate "2018.08.??"]
[EventType "swiss"]
[EventRounds "9"]
[EventCountry "USA"]
[TimeControl "6000+10"]
[WhiteClock "0:00:58"]
[BlackClock "0:02:19"]

1. e4 {[%emt 0:00:10]} e5 {[%emt 0:00:20]} 2. Nf3 {[%emt 0:00:41]} Nc6 {
[%emt 0:00:10]} 3. c3 {[%emt 0:00:10]} Nf6 {[%emt 0:17:06]} 4. d4 {[%emt 0:01:
56]} exd4 {[%emt 0:00:10]} 5. e5 {[%emt 0:00:27]} Nd5 {[%emt 0:01:15]} 6. cxd4
{[%emt 0:00:17]} d6 {[%emt 0:06:18]} 7. Bb5 {[%emt 0:01:45]} Be7 {[%emt 0:08:
05]} 8. O-O {[%emt 0:10:28]} O-O {[%emt 0:00:27]} 9. Nc3 {[%emt 0:06:51]} Nb6 {
[%emt 0:15:21]} 10. h3 {[%emt 0:17:47]} Bf5 {[%emt 0:01:14]} 11. Be3 {[%emt 0:
03:50]} a6 {[%emt 0:07:34]} 12. Bxc6 {[%emt 0:09:10]} bxc6 {[%emt 0:00:27]} 13.
Qe2 {[%emt 0:01:12]} d5 {[%emt 0:17:39]} 14. Rac1 {[%emt 0:20:23]} Bd7 {
[%emt 0:08:46]} 15. Rfd1 {[%emt 0:03:27]} Re8 {[%emt 0:00:11]} 16. Ne1 {
[%emt 0:04:34]} f5 {[%emt 0:03:06]} 17. f4 {[%emt 0:03:56]} a5 {[%emt 0:01:48]}
18. Nd3 {[%emt 0:02:02]} Bb4 {[%emt 0:04:23]} 19. Nb1 {[%emt 0:00:10]} Nc4 {
[%emt 0:00:10]} 20. Nd2 {[%emt 0:01:14]} Bxd2 {[%emt 0:01:57]} 21. Bxd2 {
[%emt 0:00:18]} a4 {[%emt 0:01:23]} 22. Bb4 {[%emt 0:00:00]} Qh4 {[%emt 0:00:
14]} 23. Qf2 {[%emt 0:00:00]} Qxf2+ {[%emt 0:00:10]} 24. Kxf2 {[%emt 0:00:00]}
a3 {[%emt 0:00:13]} 25. b3 {[%emt 0:00:00]} Nb2 {[%emt 0:00:11]} 26. Rd2 {
[%emt 0:00:00]} Nxd3+ {[%emt 0:00:11]} 27. Rxd3 {[%emt 0:00:00]} Kf7 {[%emt 0:
00:13]} 28. Bd2 {[%emt 0:00:00]} Reb8 {[%emt 0:00:11]} 29. Rb1 {[%emt 0:00:00]}
Bc8 {[%emt 0:00:10]} 30. Rc3 {[%emt 0:00:00]} Rb6 {[%emt 0:00:11]} 31. Rc5 {
[%emt 0:00:00]} Ke6 {[%emt 0:00:12]} 32. Ba5 {[%emt 0:00:00]} Rba6 {[%emt 0:00:
10]} 33. Bxc7 {[%emt 0:00:00]} R8a7 {[%emt 0:00:12]} 34. Bd6 {[%emt 0:00:00]}
Bd7 {[%emt 0:00:15]} 35. Rc2 {[%emt 0:00:00]} Ra8 {[%emt 0:00:24]} 36. Bb4 {
[%emt 0:00:00]} Rb8 {[%emt 0:00:11]} 37. Bd2 {[%emt 0:00:00]} g6 {[%emt 0:00:
10]} 38. b4 {[%emt 0:00:00]} Ra4 {[%emt 0:00:10]} 39. Rb3 {[%emt 0:00:00]} Rb6
{[%emt 0:00:10]} 40. Rc1 {[%emt 0:00:00]} h5 {[%emt 0:00:11]} 41. Re1 {[%emt 0:
00:00]} Rb8 {[%emt 0:00:14]} 42. Ree3 {[%emt 0:00:00]} Rba8 {[%emt 0:00:10]}
43. Ke1 {[%emt 0:11:00]} R8a6 {[%emt 0:00:15]} 44. Kd1 {[%emt 0:00:14]} Ra8 {
[%emt 0:00:14]} 45. Kc2 {[%emt 0:00:11]} Be8 {[%emt 0:00:11]} 46. Bc1 {[%emt 0:
01:42]} Bd7 {[%emt 0:00:10]} 47. Rxa3 {[%emt 0:00:49]} Rxa3 {[%emt 0:02:48]}
48. Rxa3 {[%emt 0:00:56]} Rxa3 {[%emt 0:00:10]} 49. Bxa3 {[%emt 0:00:10]} Bc8 {
[%emt 0:01:17]} 50. h4 {[%emt 0:00:10]} Ba6 {[%emt 0:00:10]} 51. Bc1 {[%emt 0:
01:51]} Bb5 {[%emt 0:00:10]} 52. a3 {[%emt 0:00:00]} Ba4+ {[%emt 0:00:10]} 53.
Kc3 {[%emt 0:00:00]} Bd1 {[%emt 0:00:37]} 54. b5 {[%emt 0:00:11]} cxb5 {
[%emt 0:00:00]} 55. Kb4 {[%emt 0:00:10]} Be2 {[%emt 0:00:00]} 56. Kc5 {[%emt 0:
00:10]} 1-0